Cogmind - Beta 14 @@@ ROGUE MODE // 2025.03.15 @ 14:15:21 Player: Cog on my mind Result: Destroyed self with Grenade Launcher Performance ------------- Evolutions (0) 0 Regions Visited (4) 800 Robots Destroyed (38) 190 Value Destroyed (943) 943 Prototype IDs (2) 40 Alien Tech Used (0) 0 Bonus (74) 74 TOTAL SCORE: 2047 Bonus ------- High Alert Combat Kills 74 Cogmind --------- Core Integrity 0/250 Matter 177/300 Energy 113/125 System Corruption 1% Temperature Cool (0) Movement Treading (160) Location -9/Mines Parts ------- > --- POWER (1) -------- Light Ion Engine > --- PROPULSION (2) --- Light Treads Light Treads > --- UTILITY (2) ------ Medium Storage Unit Seismic Detector > --- WEAPON (2) ------- Shotgun Grenade Launcher > --- INVENTORY (10) --- Reinforced Deuterium Engine Light Treads Light Treads High-capacity Storage Unit High-capacity Matter Pod (200) Hacking Suite Battle Cannon Grenade Launcher Grenade Launcher Peak State ------------ > --- POWER ------------ Ion Engine > --- PROPULSION ------- Light Treads Light Treads > --- UTILITY ---------- Medium Storage Unit Seismic Detector > --- WEAPON ----------- Shotgun Battle Cannon > --- INVENTORY -------- Light Ion Engine Reinforced Deuterium Engine Light Treads Light Treads High-capacity Storage Unit High-capacity Matter Pod Hacking Suite Grenade Launcher Grenade Launcher Grenade Launcher [Rating: 10] Favorites ----------- Power Ion Engine Engine Ion Engine Propulsion Light Treads Treads Light Treads Utility Seismic Detector Device Seismic Detector Storage Medium Storage Unit Weapon Assault Rifle Energy Gun Small Laser Ballistic Gun Assault Rifle Ballistic Cannon Battle Cannon Launcher Grenade Launcher Build | -11 -10 -10 -10 -9 ------- Run | Yrd Mat Min Exi Min Slots Evolved . | . . . . . Power . | . . . . . Propulsion . | . . . . . Utility . | . . . . . Weapon . | . . . . . Parts Attached 30 | 7 11 5 . 7 Power 3 | 1 1 . . 1 Engine 3 | 1 1 . . 1 Core . | . . . . . Reactor . | . . . . . Propulsion 2 | 2 . . . . Treads 2 | 2 . . . . Leg . | . . . . . Wheel . | . . . . . Hover . | . . . . . Flight . | . . . . . Utility 3 | 2 1 . . . Device 1 | 1 . . . . Storage 2 | 1 1 . . . Processor . | . . . . . Hackware . | . . . . . Protection . | . . . . . Artifact . | . . . . . Weapon 22 | 2 9 5 . 6 Energy Gun 2 | . 1 1 . . Energy Cannon . | . . . . . Ballistic Gun 9 | 2 4 1 . 2 Ballistic Cannon 3 | . 1 1 . 1 Launcher 8 | . 3 2 . 3 Special Weapon . | . . . . . Impact Weapon . | . . . . . Slashing Weapon . | . . . . . Piercing Weapon . | . . . . . Special Melee Weapon . | . . . . . Unidentified Prototypes . | . . . . . Parts Lost 4 | . 2 1 . 1 Power 2 | . 1 . . 1 Propulsion . | . . . . . Utility . | . . . . . Weapon 2 | . 1 1 . . Highest Loss Streak 1 | . 1 1 . 1 To Critical Strikes . | . . . . . Average Slot Usage (%) 99 | . 99 100 100 97 Engine 13 | . 13 14 14 12 Treads 28 | . 28 28 28 28 Device 14 | . 14 14 14 14 Storage 14 | . 14 14 14 14 Energy Gun 3 | . . 7 14 1 Ballistic Gun 18 | . 24 15 . 10 Ballistic Cannon 4 | . 2 4 14 10 Peak Build Rating 10 | 7 8 9 9 10 Average Rating 7 | 5 7 8 9 9 On Entrance 6 | . 7 8 9 9 Naked Turns . | . . . . . Heaviest Build 22 | 14 20 21 20 22 Greatest Support 40 | 40 40 40 40 40 Greatest Overweight (x) . | . . . . . Average Overweight (x) . | . . . . . Largest Inventory Capacity 10 | 8 10 10 10 10 Average Capacity 9 | 7 8 10 10 10 Most Carried 10 | . 8 9 10 10 Average Carried 6 | . 5 8 9 9 Final Capacity 10 | 8 10 10 10 10 Final Carried 10 | . 8 9 10 9 Class Distribution -------------------- 100% | Mutant Dominant Class ---------------- Mutant | -10/Materials Mutant | -10/Mines Mutant | -10/Exiles Mutant | -9/Mines Resources | -11 -10 -10 -10 -9 ----------- Run | Yrd Mat Min Exi Min Matter Collected 1283 | 274 485 146 366 12 Remotely . | . . . . . Salvage Created 915 | 14 778 109 . 14 Parts 79 | 4 59 12 . 4 Haulers Intercepted 1 | . 1 . . . Recyclers Shooed . | . . . . . Parts Field Recycled . | . . . . . Retrieved Matter . | . . . . . Parts Self-Destructed . | . . . . . Prevented . | . . . . . Kills | -11 -10 -10 -10 -9 ------- Run | Yrd Mat Min Exi Min Combat Hostiles Destroyed 26 | . 18 5 . 3 Guns 9 | . 8 1 . . Cannons 3 | . 3 . . . AOE 14 | . 7 4 . 3 Classes Destroyed 9 | 1 8 . . . Worker 3 | . 2 1 . . Builder 1 | . 1 . . . Tunneler 1 | 1 . . . . Hauler 1 | . 1 . . . Recycler 1 | . 1 . . . Operator 3 | . 3 . . . Watcher 2 | . 2 . . . Swarmer 9 | . 3 3 . 3 Grunt 17 | . 15 2 . . Best Kill Streak 4 | 1 4 3 . 3 Combat Bots Only 4 | . 4 3 . 3 Max Kills in Single Turn 3 | 1 2 3 . 2 Gunslinging 1 | . 1 . . . Exploded 3 | . 2 3 . 2 Melee . | . . . . . Uniques/NPCs Destroyed . | . . . . . Combat | -11 -10 -10 -10 -9 -------- Run | Yrd Mat Min Exi Min Hostile Shots Fired 71 | . 54 8 . 9 Missed 17 | . 12 2 . 3 Damage Taken 915 | . 776 66 . 73 Core 252 | . 210 6 . 36 Absorbed by Shields . | . . . . . Core Remaining (%) 100 | 100 . . . . Volleys Fired 107 | 1 97 5 . 4 Largest 2 | 2 2 2 . 2 Hottest 60 | 40 60 40 . 60 Shots Fired 205 | 2 188 8 . 7 Gun 172 | 2 164 6 . . Cannon 16 | . 16 . . . Launcher 17 | . 8 2 . 7 Special . | . . . . . Kinetic 188 | 2 180 6 . . Thermal . | . . . . . Explosive 17 | . 8 2 . 7 Electromagnetic . | . . . . . Robot Hit Streak 9 | 1 9 3 . . Robot Miss Streak 7 | 1 7 1 . 2 Penetration Max . | . . . . . Secondary Targets 1 | . 1 . . . Max Gunslinging Chain 1 | . 1 . . . Shots Hit Robots 101 | 1 96 4 . . Core Hits 58 | 2 45 8 . 3 Critical Kills 1 | . 1 . . . Critical Parts Destroyed 1 | . 1 . . . Critical Strikes 2 | . 2 . . . Destroy 2 | . 2 . . . Melee Attacks . | . . . . . Impact . | . . . . . Slashing . | . . . . . Piercing . | . . . . . Sneak Attacks . | . . . . . Combat Hostiles . | . . . . . Follow-up Attacks . | . . . . . Damage Inflicted 2041 | 22 1708 220 . 91 Guns 1172 | 22 1091 59 . . Cannons 92 | . 92 . . . Explosions 776 | . 524 161 . 91 Melee . | . . . . . Ramming 1 | . 1 . . . Kinetic 1264 | 22 1183 59 . . Thermal . | . . . . . Explosive 776 | . 524 161 . 91 Electromagnetic . | . . . . . Impact . | . . . . . Slashing . | . . . . . Piercing . | . . . . . Highest Corruption 1 | . 1 1 1 1 Average Corruption 1 | . 1 1 1 1 Corruption Purged . | . . . . . Corruption Blocked . | . . . . . Effects 13 | . 6 2 4 1 Message Errors 5 | . 2 1 1 1 Matter Fused 4 | . 2 1 1 . Heat Flow Errors 1 | . . . 1 . Energy Discharges 1 | . . . 1 . Data Loss (minor) 1 | . 1 . . . Alerts 1 | . 1 . . . Overload Shots . | . . . . . Overflow Damage 39 | . 39 . . . Projectiles . | . . . . . Explosions 39 | . 39 . . . Melee . | . . . . . Knockbacks 1 | . 1 . . . Impact . | . . . . . Kinetic 1 | . 1 . . . Secondary . | . . . . . Self-Inflicted Damage 275 | . 253 . . 22 Shots 5 | . 4 . . 1 Rammed 1 | . 1 . . . Targets Rammed 1 | . 1 . . . Kicked . | . . . . . Crushed . | . . . . . Highest Temperature 192 | . 20 2 192 . Average Temperature 25 | . 9 2 97 . Received Heat Transfer 300 | . 276 24 . . Siege Activations . | . . . . . Robots Corrupted . | . . . . . Combat Hostiles . | . . . . . Parts Fried . | . . . . . Impact Corruptions . | . . . . . Robots Melted . | . . . . . Combat Hostiles . | . . . . . Parts Melted . | . . . . . Heat Transferred . | . . . . . Parts Sabotaged . | . . . . . Parts Stolen . | . . . . . Parts Stripped . | . . . . . Power Chain Reactions . | . . . . . Alert | -11 -10 -10 -10 -9 ------- Run | Yrd Mat Min Exi Min Peak Influence 637 | 5 637 344 . 90 Initial 201 | . 3 201 . . Average 323 | 1 376 315 . 60 Maximum Alert Level 2 | . 2 1 . . Low Security (%) 26 | 100 21 1 . 100 Level 1 33 | . 19 98 . . Level 2 40 | . 59 . . . Level 3 . | . . . . . Level 4 . | . . . . . Level 5 . | . . . . . High Security . | . . . . . Max Security . | . . . . . Squads Dispatched 4 | . 4 . . . Investigation 2 | . 2 . . . Extermination . | . . . . . Reinforcement 2 | . 2 . . . Assault . | . . . . . Garrison . | . . . . . Intercept . | . . . . . Searches Triggered . | . . . . . Construction Impeded . | . . . . . Haulers Reinforced . | . . . . . Active Scanning Responses . | . . . . . Cargo Convoy Interrupts . | . . . . . Stealth | -11 -10 -10 -10 -9 --------- Run | Yrd Mat Min Exi Min Distress Signals 2 | . 2 . . . Communications Jammed . | . . . . . Distress Signals . | . . . . . Times Spotted 43 | . 31 5 . 7 Peak Tracking Total 4 | . 4 3 . 4 Tactical Retreats 1 | . 1 . . . Traps | -11 -10 -10 -10 -9 ------- Run | Yrd Mat Min Exi Min Traps Triggered 1 | . 1 . . . Indirectly . | . . . . . Trap Hack Attempts . | . . . . . Triggered . | . . . . . Disarmed . | . . . . . Reprogrammed . | . . . . . Reused . | . . . . . Traps Extracted . | . . . . . Installed . | . . . . . Triggered . | . . . . . Machines | -11 -10 -10 -10 -9 ---------- Run | Yrd Mat Min Exi Min Machines Disabled 12 | . 12 . . . Max in Single Turn 6 | . 6 . . . Machines Repaired . | . . . . . Machines Dismantled . | . . . . . Machines Sabotaged . | . . . . . Overloaded Fab Kills . | . . . . . Hacking | -11 -10 -10 -10 -9 --------- Run | Yrd Mat Min Exi Min Machines Accessed 8 | . 7 . 1 . Terminals 5 | . 5 . . . Fabricators . | . . . . . Repair Stations . | . . . . . Recycling Units 2 | . 2 . . . Scanalyzers . | . . . . . Garrison Access . | . . . . . Total Hacks 16 | . 15 . 1 . Successful 8 | . 7 . 1 . Failed 7 | . 7 . . . Catastrophic 1 | . 1 . . . Database Lockouts 1 | . 1 . . . Manual 8 | . 8 . . . Terminals 13 | . 13 . . . Fabricators . | . . . . . Repair Stations . | . . . . . Recycling Units 2 | . 2 . . . Scanalyzers . | . . . . . Garrison Access . | . . . . . Terminal Hacks 4 | . 3 . 1 . Record 1 | . . . 1 . Robot Analysis 1 | . 1 . . . Prototype ID Bank 1 | . 1 . . . Patrol Status 1 | . 1 . . . Fabricator Hacks . | . . . . . Repair Station Hacks . | . . . . . Recycling Unit Hacks . | . . . . . Scanalyzer . | . . . . . Garrison Access Hacks . | . . . . . Unauthorized Hacks 4 | . 4 . . . Terminals 2 | . 2 . . . Botnet 2 | . 2 . . . Fabricators . | . . . . . Repair Stations . | . . . . . Recycling Units 2 | . 2 . . . Tunnel 2 | . 2 . . . Scanalyzers . | . . . . . Garrison Access . | . . . . . Data Cores Recovered 1 | . 1 . . . Used . | . . . . . Hacking Detections 2 | . 2 . . . Full Trace Events . | . . . . . Feedback Events . | . . . . . Feedback Blocked . | . . . . . Robot Schematics Acquired . | . . . . . Robots Built . | . . . . . Authchips . | . . . . . Time . | . . . . . Total Robot Build Rating . | . . . . . Part Schematics Acquired . | . . . . . Parts Built . | . . . . . Authchips . | . . . . . Time . | . . . . . Total Part Build Rating . | . . . . . Parts Repaired . | . . . . . Time . | . . . . . Parts Recycled . | . . . . . Recycled Matter . | . . . . . Retrieved Matter . | . . . . . Retrieved Components . | . . . . . Parts Scanalyzed . | . . . . . Part Schematics Acquired . | . . . . . Parts Damaged . | . . . . . Bothacking | -11 -10 -10 -10 -9 ------------ Run | Yrd Mat Min Exi Min Used RIF Installer . | . . . . . Robots Hacked . | . . . . . Non-combat . | . . . . . Combat . | . . . . . Robot Hacks Applied . | . . . . . Relay Couplers Released . | . . . . . Fabnet Peak Effective % . | . . . . . Robots Rewired . | . . . . . Allies Hacked . | . . . . . Hacks Repelled . | . . . . . Allies | -11 -10 -10 -10 -9 -------- Run | Yrd Mat Min Exi Min Total Allies . | . . . . . Largest Group . | . . . . . Highest-Rated Group . | . . . . . Highest-Rated Ally . | . . . . . Total Orders . | . . . . . Ally Attacks . | . . . . . Total Damage . | . . . . . Kills . | . . . . . Allies Corrupted . | . . . . . Allies Melted . | . . . . . Intel | -11 -10 -10 -10 -9 ------- Run | Yrd Mat Min Exi Min Robot Analysis Total 1 | . 1 . . . Derelict Logs Recovered . | . . . . . Drone Launches . | . . . . . Drone Recoveries . | . . . . . Exploration | -11 -10 -10 -10 -9 ------------- Run | Yrd Mat Min Exi Min Turns Passed 2256 | 94 1366 405 246 145 Spaces Moved 1147 | 52 627 236 154 78 Core 4 | 4 . . . . Treads 1143 | 48 627 236 154 78 Legs . | . . . . . Wheels . | . . . . . Hover . | . . . . . Flight . | . . . . . Fastest Speed 50 | 50 160 160 160 160 Average Speed 159 | 151 160 160 160 160 Slowest Speed 160 | 160 160 160 160 160 Overloaded Moves . | . . . . . Propulsion Burnouts . | . . . . . Robots Hopped . | . . . . . Cave-ins Triggered . | . . . . . Exploration Rate (%) 39 | 3 92 41 49 12 Regions Visited 4 Branch Regions 3 Pre-discovered Areas 3 | . 2 . 1 . Known Exits Taken . | . . . . . Unknown Exits Taken 4 | 1 1 1 1 . Scrap Searched 1 | . . 1 . . Spaces Dug . | . . . . . Terrain Destroyed 155 | . 94 13 . 48 Melee . | . . . . . Projectile . | . . . . . AOE 155 | . 94 13 . 48 Terrain Rammed . | . . . . . Walls Destroyed . | . . . . . Machines Disabled . | . . . . . Actions | -11 -10 -10 -10 -9 --------- Run | Yrd Mat Min Exi Min Total 1363 | 62 802 255 154 90 Wait 66 | 3 56 7 . . Move 1143 | 51 626 235 153 78 Hop . | . . . . . Pick Up 10 | . 8 1 1 . Fast Attach 14 | 7 4 2 . 1 Attach 2 | . . 1 . 1 Detach 1 | . . 1 . . Swap 14 | . 7 2 . 5 Drop 5 | . 3 1 . 1 Fire 107 | 1 97 5 . 4 Melee . | . . . . . Ram . | . . . . . Kick . | . . . . . Crush 1 | . 1 . . . Escape Stasis . | . . . . . Rewire . | . . . . . Trap . | . . . . . Miscellaneous . | . . . . . Route ------- -11/Scrapyard -10/Materials (discovered 3 exits: [*Mat x2] / [*Min]) -10/Mines -10/Exiles -9/Mines History --------- Turn | Location | Event 3 | -11/Scrapyard | Discovered new exit (range 15) 95 | -11/Scrapyard | Entered Materials 243 | -10/Materials | Central database locked down 305 | -10/Materials | Build established: Mutant 629 | -10/Materials | Discovered new exit (range 15) 991 | -10/Materials | Discovered new exit (range 8) 1070 | -10/Materials | Discovered new exit (range 10) 1391 | -10/Materials | Core integrity fell below 50% 1391 | -10/Materials | Core integrity fell below 20% 1461 | -10/Materials | Entered Mines 1546 | -10/Mines | Met a Derelict bent on vengeance 1738 | -10/Mines | A weapon hastily lodged in a ceiling crevice suddenly fell to the ground 1860 | -10/Mines | Deemed a non-threat by the Exiles lab entrance 1860 | -10/Mines | Discovered new exit (range 5) 1866 | -10/Mines | Entered Exiles 1909 | -10/Exiles | Met 8R-AWN 1938 | -10/Exiles | Met EX-HEX 1999 | -10/Exiles | Met EX-DEC 2007 | -10/Exiles | Learned location of Zion (-7) 2095 | -10/Exiles | Discovered new exit (range 11) 2112 | -10/Exiles | Entered Mines 2257 | -9/Mines | Destroyed self with Grenade Launcher Last Messages --------------- Rifle. 02211_ U-05 Engineer forms the Earth. 02212_ The unstable cave ceiling collapses. 02212_ U-05 Engineer builds a Wall. 02212_ U-05 Engineer lays Concrete. 02214_ U-05 Engineer builds a Wall. 02215_ U-05 Engineer lays Concrete. 02217_ U-05 Engineer builds a Wall. 02218_ U-05 Engineer lays Concrete. 02220_ The unstable cave ceiling collapses. 02221_ U-05 Engineer builds a Wall. 02227_ The unstable cave ceiling collapses. 02230_ U-05 Engineer lays Concrete. 02232_ U-05 Engineer builds a Wall. 02233_ U-05 Engineer lays Concrete. 02236_ U-05 Engineer builds a Wall. 02238_ U-05 Engineer lays Concrete. 02239_ RW CPEXS Map ----- +----------------------------------------------------+ | | | | | | | | | | | | | | | | | | | | | | | | | ??????????????????????????????????????????? | | ??????????????????????????????????????????? | | ?????????###??????????????????????????????? | | #????##### #????????????###???????????????? | | ##??## ## ##??????????? ???????????????? | | #### ## #??????????? ???????????????? | | ## ####???????? ???????????????? | | ## # #???????? ???????????????? | | #* ##??????? ???????????????? | | # ## ####??????# #???????????????? | | ## ##### #####??# #???????????????? | | # ### ## ##?# #???????????????? | | ########## ### #???????????????? | | ????## #####r @#???????????????? | | ???## ##### ### #??????????????? | | ???# [ #### #### #??????????????? | | ???#!! ##? #??????????????? | | ???## ######## ##? ## #??????????????? | | ????# #??????####?#??# ###??????????????? | | ????# #??????????????##s?????????????????? | | ????# ??????????????? ?????????????????? | | ????# ??????????????? #?????????????????? | | ????####??????????????? ??????????????????? | | ???????????????????????s??????????????????? | | ??????????????????????" ??????????????????? | | ?????????????????????? ??????????????????? | | ??????????????????????##??????????????????? | | ??????????????????????????????????????????? | | ??????????????????????????????????????????? | | ??????????????????????????????????????????? | | ??????????????????????????????????????????? | | ??????????????????????????????????????????? | | ??????????????????????????????????????????? | | ??????????????????????????????????????????? | | ??????????????????????????????????????????? | | ??????????????????????????????????????????? | | ??????????????????????????????????????????? | | ??????????????????????????????????????????? | +----------------------------------------------------+ Best States ------------- Heat Dissipation 25 Energy Generation 10 Energy Capacity 250 Matter Stores 300 Matter Capacity 300 Sight Range 16 Terrain Scan Density 10 Evasion (%) 40 Recoil Reduction 2 Item Schematics ----------------- None Robot Schematics ------------------ None Fabricated ------------ Nothing Alien Tech Used ----------------- None Achievements -------------- None Challenges ------------ None Game ------ Seed StormChainPlatform Manual? 0 Play Time 00:10:58 Cumulative 376.8 hours Start 2025.03.15 @ 14:05:19 End 2025.03.15 @ 14:15:21 Sessions 1 Manual Loads 0 Difficulty Rogue Special Mode None Game No. 86 Rogue 86 Adventurer 0 Explorer 0 Win Type - Total 24 Types 13/1/6/1/0/0/1/1/1 Lore% 84 Gallery% 83 Achievement% 79 Wizard Run 0 Options --------- Layout 1 ASCII 0 Keyboard 0 Movement Mouse Keybinds 0 Fullscreen 1 Font 24/Smallcaps Map View 50x35 Zoom Use 0% Tactical HUD 1 Map Filters NONE Filters NONE Steam 1 RUN: 7ffe8850-bf5c-4e30-97b8-a5085db53d90